bitfinex/quotes_ETHUSD_20250507
["timestamp","ask_amount","ask_price","bid_price","bid_amount"]
[1746579873177,5.41098133,1848.1,1847.6,5.41228861]
[1746579873348,5.41098133,1848.1,1847.7,5.41212918]
[1746579873672,0.40639292,1848.1,1847.9,5.41135514]
[1746579873876,5.41038349,1848.3,1847.9,12.38436073]
[1746579874175,3.0,1848.2,1847.9,12.38436073]
[1746579874565,3.0,1848.2,1847.9,19.34236073]
[1746579874745,5.41047303,1848.3,1847.9,19.34236073]
[1746579875075,5.41067486,1848.2,1847.9,13.931]
[1746579875589,10.82123163,1848.3,1847.9,13.931]
[1746579875895,10.82120482,1848.3,1847.9,13.931]
[1746579876189,5.41072781,1848.2,1847.9,13.931]
[1746579876394,5.41056506,1848.3,1847.9,19.34249946]
[1746579876742,0.39806103,1848.3,1848.0,5.41125445]
[1746579876943,5.41025167,1848.4,1848.0,5.41125445]
[1746579877184,5.41051016,1848.3,1847.9,19.34238265]
[1746579877548,5.98606684,1848.4,1847.9,6.973]
[1746579877549,5.41097931,1848.1,1847.9,6.973]
[1746579877749,5.41097931,1848.1,1847.8,0.8025]
[1746579878064,5.41101117,1848.1,1847.8,0.8025]
[1746579878992,5.41109884,1848.1,1847.8,0.8025]
[1746579879764,10.82231789,1848.1,1847.8,0.8025]
[1746579879995,5.41109884,1848.1,1847.8,0.8025]
[1746579880463,5.41086838,1848.2,1847.8,0.8025]
[1746579880660,6.83405131,1848.2,1847.8,6.21428491]
[1746579880873,8.82099241,1848.3,1847.9,5.41145314]
[1746579881073,5.41067748,1848.2,1847.9,5.41153409]
[1746579881471,5.41117688,1848.1,1847.6,6.19204896]
[1746579881673,5.41117688,1848.1,1847.7,12.34098293]
[1746579881674,5.95229457,1848.1,1847.7,12.34098293]
[1746579882400,3.0,1848.0,1847.7,12.34094332]
[1746579882711,3.0,1848.0,1847.7,6.929]
[1746579882857,13.82292919,1848.0,1847.7,6.929]
[1746579883196,8.41140685,1848.0,1847.7,6.929]
[1746579883392,9.84776932,1848.0,1847.7,6.929]
[1746579883697,9.84778796,1848.0,1847.7,6.929]
[1746579883871,5.4116993,1847.9,1847.7,6.929]
[1746579884816,5.4118411,1847.8,1847.7,6.929]
[1746579885003,8.4118411,1847.8,1847.7,6.929]
[1746579885177,9.79419514,1847.8,1847.7,6.929]
[1746579885363,5.41227273,1847.7,1847.4,0.8331]
[1746579885677,10.82472824,1847.7,1847.3,13.753]
[1746579885890,5.41236239,1847.7,1847.3,13.753]
[1746579886088,5.41236239,1847.7,1847.3,24.57926842]
[1746579886311,15.20648174,1847.8,1847.4,5.41295649]
[1746579886488,1.52064817,1847.7,1847.4,5.41295649]
[1746579886694,1.52064817,1847.7,1847.5,5.41271058]
[1746579886891,3.39761552,1847.8,1847.6,5.41232947]
[1746579887537,3.39761552,1847.8,1847.4,5.46701437]
[1746579887671,8.80947755,1847.8,1847.4,5.41282977]
[1746579887872,3.39761552,1847.8,1847.4,6.796]
[1746579888073,3.39761552,1847.8,1847.5,6.23503921]
[1746579888496,8.80948607,1847.8,1847.5,0.8225]
[1746579888703,10.23159189,1847.8,1847.5,0.8225]
[1746579888914,5.41217026,1847.7,1847.4,6.796]
[1746579889213,10.231747,1847.8,1847.4,12.2090065]
[1746579889573,10.231747,1847.8,1847.4,12.2087971]
[1746579889915,10.231747,1847.8,1847.4,6.796]
[1746579890073,10.2317076,1847.8,1847.4,12.20889433]
[1746579890273,5.41213633,1847.7,1847.4,6.796]
[1746579890684,5.41287162,1847.5,1847.2,20.307]
[1746579890885,5.4133059,1847.3,1847.0,0.7655]
[1746579891083,8.41350912,1847.3,1847.0,14.4625]
[1746579891499,8.41301288,1847.4,1846.8,1.1749835]
[1746579891705,8.41392973,1847.1,1846.8,1.1749835]
[1746579892002,5.41314506,1847.4,1846.9,6.93]
[1746579892170,3.0,1847.2,1846.9,6.93]
[1746579892367,8.41378958,1847.2,1846.9,6.93]
[1746579892603,5.41418516,1847.0,1846.9,6.93]
[1746579892770,8.41447831,1846.9,1846.8,0.4094835]
[1746579893102,3.0,1846.9,1846.8,0.4094835]
[1746579893305,8.41447831,1846.9,1846.8,0.4094835]
[1746579893608,3.0,1846.9,1846.8,0.4094835]
[1746579895114,3.41457102,1846.9,1846.8,0.4094835]
[1746579895927,5.76044976,1847.6,1847.2,5.41351653]
[1746579896220,3.0,1847.5,1847.2,5.41338719]
[1746579896445,5.41254976,1847.6,1847.1,12.34471928]
[1746579896738,8.41273395,1847.5,1847.1,12.34471928]
[1746579897106,3.0,1847.5,1847.1,6.931]
[1746579897312,3.0,1847.5,1847.2,5.41342253]
[1746579897533,3.0,1847.5,1847.3,12.15030414]
[1746579897740,3.3,1847.5,1847.3,12.15016152]
[1746579897902,3.0,1847.6,1847.3,6.737]
[1746579898102,3.0,1847.6,1847.3,12.15021952]
[1746579898333,0.40976383,1847.6,1847.5,5.41271989]
[1746579898637,0.3479,1848.1,1847.7,5.41192916]
[1746579898796,5.41169741,1847.9,1847.6,6.931]
[1746579899128,0.54116974,1847.8,1847.6,6.931]
[1746579899742,8.41155325,1847.9,1847.6,6.931]
[1746579900048,8.81245072,1847.9,1847.6,6.931]
[1746579900734,3.40089747,1847.9,1847.6,12.34331057]
[1746579900901,0.40089747,1847.9,1847.7,5.41211342]
[1746579901102,8.75905428,1848.1,1847.6,6.931]
[1746579901309,3.0,1847.9,1847.6,12.34326962]
[1746579901639,3.0,1847.8,1847.6,6.931]
[1746579902044,3.0,1847.9,1847.6,12.34341994]
[1746579902407,3.0,1847.9,1847.6,12.34324644]
[1746579903742,5.40974651,1848.6,1848.1,5.41077094]
[1746579903953,0.54097465,1848.5,1848.1,12.34173663]
[1746579904106,3.0,1848.4,1848.1,6.931]
[1746579904306,3.3479,1848.2,1848.1,6.931]
[1746579904532,8.75856984,1848.2,1847.9,6.931]
[1746579904853,8.75856984,1848.2,1847.7,19.02603483]
[1746579904854,3.0,1848.0,1847.7,19.02603483]
[1746579905148,3.84110242,1848.0,1847.7,19.02593726]
[1746579905325,3.0,1848.0,1847.8,5.41159533]
[1746579906112,3.0,1848.0,1847.7,19.02591418]
[1746579906313,0.40188007,1848.0,1847.9,5.41154824]
[1746579906615,8.75844589,1848.3,1847.9,5.41154824]
[1746579906919,8.75844589,1848.3,1847.8,5.41165531]
[1746579907125,6.28667939,1848.2,1847.8,5.41165531]
[1746579908221,6.28654752,1848.2,1847.8,5.41165468]
[1746579908837,0.87584459,1848.2,1847.7,13.614]
[1746579909119,0.74591857,1848.5,1847.9,6.21104824]
[1746579909314,0.39801857,1848.5,1848.4,5.41008439]
[1746579909538,0.3479,1848.9,1848.2,18.72062614]
[1746579909729,0.3479,1848.9,1848.4,5.40984304]
[1746579909730,5.75668932,1848.9,1848.4,5.40984304]
[1746579909941,8.98460315,1848.8,1848.4,5.40984304]
[1746579910244,8.98460315,1848.8,1848.3,6.20973159]
[1746579910444,5.40964372,1848.6,1848.2,18.71764923]
[1746579910954,5.40964372,1848.6,1848.2,18.71750466]
[1746579911114,8.40936193,1848.7,1848.3,5.41035635]
[1746579911447,3.0,1848.5,1848.2,18.71748131]
[1746579911647,8.40995702,1848.5,1848.2,13.307]
[1746579911835,0.3479,1848.5,1847.9,13.294]
[1746579912036,5.4110951,1848.1,1847.9,13.294]
[1746579912623,8.41125541,1848.0,1847.9,6.668]
[1746579912828,9.79349046,1848.0,1847.9,6.668]
[1746579913342,4.79463913,1848.0,1847.5,19.511]
[1746579913525,3.0,1847.9,1847.5,19.511]
[1746579913721,5.41218655,1847.7,1847.5,19.511]
[1746579914519,5.41200483,1847.8,1847.5,19.511]
[1746579915115,8.41170427,1847.9,1847.5,19.511]
[1746579915319,8.41170427,1847.9,1847.5,24.92371349]
[1746579915523,9.83525217,1847.9,1847.5,24.92371349]
[1746579915861,5.41191036,1847.8,1847.5,19.511]
[1746579916022,4.4235479,1847.9,1847.5,19.511]
[1746579916224,3.41240408,1848.0,1847.7,5.41198505]
[1746579916933,3.41240408,1848.0,1847.6,5.4123287]
[1746579917146,8.82385088,1848.0,1847.6,10.82465273]
[1746579917348,5.82376551,1848.0,1847.6,5.41223647]
[1746579917561,6.74093206,1848.0,1847.6,5.41223647]
[1746579917755,6.74093206,1848.0,1847.6,5.41240157]
[1746579918123,12.15246605,1848.0,1847.5,24.92353765]
[1746579918322,6.74093206,1848.0,1847.5,24.92353765]
[1746579918551,6.74093206,1848.0,1847.5,30.33602716]
[1746579918869,0.67409321,1847.9,1847.6,5.41229962]
[1746579919036,1.32957063,1848.0,1847.7,5.41202364]
[1746579919527,6.74083376,1848.0,1847.6,5.41221551]
[1746579920030,12.15233607,1848.0,1847.6,5.41221551]
[1746579920237,5.41171375,1847.9,1847.5,30.33619177]
[1746579920451,3.0,1847.8,1847.5,24.92352921]
[1746579920639,0.67412844,1847.9,1847.6,5.4124128]
[1746579920838,3.0,1847.8,1847.5,24.92348433]
[1746579921156,0.67412844,1847.9,1847.5,24.92348433]
[1746579921335,0.67412844,1847.9,1847.6,5.4123835]
[1746579921860,0.67412844,1847.9,1847.7,5.4121338]
[1746579922027,0.41240408,1848.0,1847.6,5.46641097]
[1746579922231,8.41089087,1848.2,1847.6,5.46641097]
[1746579922232,13.82185025,1848.2,1847.7,5.41193695]
[1746579922536,8.41089087,1848.2,1847.7,10.8238739]
[1746579922761,8.41089087,1848.2,1847.8,5.41180451]
[1746579922937,9.82782024,1848.2,1847.8,5.41180451]
[1746579923619,8.75831352,1848.3,1847.9,12.87301743]
[1746579923824,5.40922914,1848.7,1848.0,10.82232897]
[1746579923825,5.41025818,1848.4,1848.0,10.82232897]
[1746579924060,5.41025818,1848.4,1848.0,5.41108032]
[1746579924258,3.0,1848.3,1848.0,10.82210473]
[1746579924560,0.41399745,1848.3,1848.0,5.41102265]
[1746579924719,8.75781498,1848.5,1848.1,5.41088176]
[1746579924925,0.8757815,1848.4,1848.1,5.41088176]
[1746579925140,1.27404827,1848.4,1848.1,5.41088176]
[1746579925971,1.05643147,1848.8,1848.2,0.05410827]
[1746579926150,5.75682035,1848.8,1848.4,5.40984787]
[1746579926364,5.4081576,1849.1,1848.5,5.40979172]
[1746579926570,5.40835601,1849.0,1848.6,5.40927957]
[1746579926774,5.40872399,1848.9,1848.5,5.40967171]
[1746579927082,3.0,1848.8,1848.5,5.40967171]
[1746579927458,5.4093051,1848.7,1848.4,13.163]
[1746579927899,8.4096127,1848.6,1848.1,5.41071855]
[1746579928188,8.40969883,1848.6,1848.1,5.41083791]
[1746579928490,3.0,1848.4,1848.0,18.56306771]
[1746579928645,5.41039257,1848.3,1848.0,13.152]
[1746579928845,3.0,1848.2,1848.0,13.152]
[1746579929152,3.84103926,1848.2,1847.9,6.667]
[1746579929379,3.0,1848.0,1847.9,6.667]
[1746579931057,9.15568415,1848.0,1847.9,6.667]
[1746579931263,3.74442874,1848.0,1847.9,6.667]
[1746579931490,3.39652874,1848.0,1847.9,6.667]
[1746579931668,0.39652874,1848.0,1847.9,7.21611717]
[1746579931988,3.3479,1848.2,1847.9,12.62766541]
[1746579932347,3.0,1848.3,1848.0,5.41110794]
[1746579932621,0.3479,1848.4,1848.0,5.94035735]
[1746579932740,0.3479,1848.4,1848.0,5.94026712]
[1746579933143,0.3479,1848.6,1848.3,5.41023419]
[1746579933372,3.0,1848.5,1848.2,5.4105313]
[1746579933557,3.0,1848.5,1848.4,0.52717451]
[1746579933756,5.75740084,1848.6,1848.2,5.41047409]
[1746579933969,5.75740084,1848.6,1848.4,0.52717451]
[1746579934171,3.0,1848.5,1848.2,5.41047409]
[1746579934384,3.0,1848.5,1847.9,12.07849713]
[1746579934571,3.0,1848.5,1848.3,5.41037123]
[1746579934772,8.40928141,1848.7,1848.3,5.41037123]
[1746579934994,3.0,1848.5,1848.2,6.2218666]
[1746579935196,3.0,1848.5,1848.2,11.8415666]
[1746579935498,3.0,1848.5,1848.2,11.84164939]
[1746579936093,3.0,1848.6,1848.3,5.41033815]
[1746579936894,3.0,1848.6,1848.2,11.84149129]
[1746579937191,3.0,1848.6,1848.3,5.41036728]
[1746579937571,3.0,1848.6,1848.4,6.419]
[1746579937764,0.39792766,1848.7,1848.4,6.419]
[1746579937967,3.3479,1848.8,1848.5,5.40975724]
[1746579938405,8.75698907,1848.8,1848.4,12.6195164]
[1746579938998,9.15654209,1848.8,1848.4,12.6195164]
[1746579939211,11.6467508,1848.8,1848.4,6.419]
[1746579939381,11.6467508,1848.8,1848.4,11.82897813]
[1746579939898,3.74745302,1848.8,1848.4,11.82893193]
[1746579940269,3.74745302,1848.8,1848.5,5.40975877]
[1746579940779,3.74745302,1848.8,1848.6,0.5233294]
[1746579940980,3.39955302,1848.8,1848.6,0.5233294]
[1746579941504,3.39955302,1848.8,1848.5,5.40977466]
[1746579941711,8.80851582,1848.8,1848.4,11.82891385]
[1746579941867,8.80851582,1848.8,1848.6,0.5233294]
[1746579942069,8.80851582,1848.8,1848.4,11.82891385]
[1746579942070,3.39955302,1848.8,1848.5,5.40976508]
[1746579942273,3.39955302,1848.8,1848.7,0.5233294]
[1746579942568,0.39955302,1848.8,1848.7,0.5233294]
[1746579942801,5.40792701,1849.2,1848.8,5.40881797]
[1746579942980,0.3479,1849.5,1849.0,5.40816613]
[1746579943183,5.4072154,1849.4,1849.1,0.52346668]
[1746579943386,3.0,1849.3,1849.1,0.52346668]
[1746579943774,5.40774388,1849.2,1849.1,0.52346668]
[1746579943979,8.40805391,1849.1,1848.9,6.419]
[1746579944182,5.40805391,1849.1,1849.0,0.51447545]
[1746579944494,8.40885992,1848.9,1848.5,24.91263189]
[1746579944699,8.40885992,1848.9,1848.5,37.69963189]
[1746579945004,8.40907885,1848.8,1848.5,32.29]
[1746579945202,5.40949908,1848.6,1848.5,19.503]
[1746579945412,5.40979172,1848.5,1848.1,5.41088051]
[1746579945617,5.4103771,1848.3,1848.0,0.7961]
[1746579945818,8.41125541,1848.0,1847.6,5.41228156]
[1746579945975,3.0,1848.0,1847.7,5.41210626]
[1746579946173,3.0,1848.0,1847.8,5.41167195]
[1746579946610,3.0,1848.0,1847.7,5.412134]
[1746579946975,3.0,1848.0,1847.7,10.82405118]
[1746579947208,3.0,1848.0,1847.7,5.41191718]
[1746579947698,8.41142142,1848.0,1847.6,18.19826575]
[1746579948080,10.20564464,1848.0,1847.6,6.418]
[1746579948284,3.0,1847.8,1847.6,6.418]
[1746579949200,8.41198341,1847.8,1847.4,5.41283254]
[1746579950069,3.0,1847.8,1847.5,5.41269517]
[1746579950572,8.41186337,1847.8,1847.4,5.41283254]
[1746579951108,3.0,1847.8,1847.4,5.41282023]
[1746579951405,3.0,1847.8,1847.5,5.41253976]
[1746579951585,0.3479,1847.9,1847.6,5.41225712]
[1746579951971,0.3479,1847.9,1847.7,0.43378203]
[1746579952174,1.41692946,1847.9,1847.7,0.43378203]
[1746579953070,3.0,1847.8,1847.7,0.43378203]
[1746579953411,8.4118411,1847.8,1847.4,5.41285777]
[1746579953583,3.0,1847.6,1847.5,0.44199532]
[1746579953788,3.0,1847.6,1847.3,11.72111779]
[1746579954106,3.0,1847.6,1847.4,0.44199532]
[1746579954479,3.0,1847.6,1847.3,11.72111779]
[1746579954701,3.0,1847.6,1847.5,0.44199532]
[1746579954918,9.25366575,1847.6,1847.2,11.83141054]
[1746579955106,9.25366575,1847.6,1847.5,0.44199532]
[1746579955279,3.84122413,1847.6,1847.1,0.8198]
[1746579955479,5.76062691,1847.5,1846.8,6.8294835]
[1746579955692,3.0,1847.1,1846.8,12.24424844]
[1746579955901,3.0,1847.2,1846.9,5.85635649]
[1746579956077,3.0,1847.3,1847.0,5.41411904]
[1746579956301,8.41331141,1847.3,1846.9,5.85629229]
[1746579956504,8.41331141,1847.3,1846.9,5.41429697]
[1746579956692,8.41331141,1847.3,1847.0,0.44199532]
[1746579957020,1.38264731,1847.3,1847.0,0.44199532]
[1746579957203,5.41338174,1847.3,1847.0,0.44199532]
[1746579958293,5.41361473,1847.2,1847.0,0.44199532]
[1746579958483,3.39654882,1847.4,1847.0,0.44199532]
[1746579958680,3.0,1847.3,1846.9,5.41431064]
[1746579959006,8.4133507,1847.3,1846.9,5.41431064]
[1746579959185,9.29444323,1847.3,1847.0,0.4545934]
[1746579960208,9.29444323,1847.3,1847.0,5.86871414]
[1746579960209,3.88098995,1847.3,1847.0,5.86871414]
[1746579960421,3.0,1847.3,1847.0,5.86871414]
[1746579960588,3.39654882,1847.4,1847.1,5.41386828]
[1746579961123,0.39654882,1847.4,1847.2,5.4135204]
[1746579961412,8.76072876,1847.5,1847.1,5.41386828]
[1746579962175,0.3479,1847.7,1847.0,0.7755]
[1746579962482,0.39731571,1847.7,1847.6,5.41217656]
[1746579962706,1.41692946,1847.9,1847.5,0.8242]
[1746579962894,0.74830607,1847.9,1847.6,5.41242429]
[1746579963082,6.15998096,1847.9,1847.5,6.23682293]
[1746579963282,3.0,1847.8,1847.5,0.8242]
[1746579963629,5.41235188,1847.7,1847.3,18.85088999]
[1746579963795,5.41235188,1847.7,1847.2,5.41340906]
[1746579963998,8.76063869,1847.5,1847.1,18.08172965]
[1746579964192,5.41301405,1847.4,1847.1,6.422]
[1746579964779,5.82614756,1847.4,1847.1,6.422]
[1746579965608,3.0,1847.2,1847.1,6.422]
[1746579965999,0.41313351,1847.4,1847.1,11.83589204]
[1746579966212,5.41305941,1847.4,1847.1,6.422]
[1746579966411,6.83044584,1847.4,1847.1,11.8358752]
[1746579966626,8.76081365,1847.5,1847.1,11.8358752]
[1746579966828,3.3479,1847.5,1847.2,5.41347865]
[1746579967032,3.0,1847.5,1847.2,5.41347865]
[1746579967327,3.0,1847.5,1847.2,10.82688393]
[1746579967526,3.0,1847.6,1847.4,5.41292517]
[1746579967734,0.33479,1847.6,1847.4,5.41292517]
[1746579967937,3.3479,1847.7,1847.4,5.41292517]
[1746579968288,3.0,1847.7,1847.4,5.41283693]
[1746579968524,3.0,1847.7,1847.3,5.4132158]
[1746579968525,8.4122778,1847.7,1847.3,5.4132158]
[1746579968702,5.4124859,1847.6,1847.2,11.64293452]
[1746579968904,4.38247637,1847.6,1847.2,6.22958074]
[1746579969223,3.0,1847.7,1847.4,5.41301085]
[1746579969538,0.74830607,1847.9,1847.6,5.41228347]
[1746579969696,3.74830607,1847.9,1847.6,5.41228347]
[1746579970904,3.74830607,1847.9,1847.7,0.4159897]
[1746579972149,0.3479,1847.1,1846.8,0.4094835]
[1746579972499,3.0,1846.7,1846.5,0.8269]
[1746579972700,3.0,1847.0,1846.5,0.8269]
[1746579972701,8.4146834,1846.9,1846.5,0.8269]
[1746579973044,3.0,1846.7,1846.5,0.8269]
[1746579973199,3.0,1846.8,1846.5,0.8269]
[1746579973400,8.41482622,1846.8,1846.5,0.8269]
[1746579973633,8.41482622,1846.8,1846.4,5.4159277]
[1746579974117,10.02603894,1846.9,1846.4,5.4159277]
[1746579974904,10.02603894,1846.9,1846.4,11.6419277]
[1746579975744,15.44079974,1846.9,1846.4,11.6419277]
[1746579975902,9.95903111,1846.8,1846.4,6.226]
[1746579976101,9.95903111,1846.8,1846.4,11.64194016]
[1746579976534,15.37407934,1846.8,1846.4,6.226]
[1746579976733,5.41506929,1846.7,1846.4,6.226]
[1746579976938,9.9590269,1846.8,1846.4,6.226]
[1746579977119,4.54407997,1846.8,1846.4,6.226]
[1746579977335,3.0,1846.8,1846.5,5.41558752]
[1746579977667,8.41481073,1846.8,1846.4,11.64176736]
[1746579979224,5.41513877,1846.7,1846.4,6.226]
[1746579979725,5.41513877,1846.7,1846.5,0.34435866]
[1746579979924,6.79813595,1846.7,1846.5,0.34435866]
[1746579981159,5.41535795,1846.6,1846.5,0.34435866]
[1746579981732,3.0,1846.5,1846.2,5.41649386]
[1746579982064,8.41574937,1846.5,1846.1,18.60811401]
[1746579982375,8.41574937,1846.5,1846.1,24.0198527]
[1746579982376,3.0,1846.5,1846.1,24.0198527]
[1746579982729,8.41575364,1846.5,1846.1,18.60310974]
[1746579982928,9.25730771,1846.5,1846.1,18.59910974]
[1746579983259,3.84155407,1846.5,1846.2,5.41631998]
[1746579984464,3.0,1846.5,1846.2,5.41631998]
[1746579985176,1.73089718,1846.7,1846.2,5.41638315]
[1746579985339,7.14608942,1846.7,1846.3,5.41609961]
[1746579985863,7.14608942,1846.7,1846.4,0.36180284]
[1746579987051,5.41555201,1846.6,1846.2,5.41634845]
[1746579987251,3.0,1846.5,1846.3,0.36180284]
[1746579987439,1.25616727,1846.6,1846.1,7.0205]
[1746579987772,3.0,1846.6,1846.3,5.41622884]
[1746579987967,3.0,1846.6,1846.4,0.36228018]
[1746579988438,8.41548648,1846.6,1846.4,0.36228018]
[1746579988759,8.41548648,1846.6,1846.5,0.36228018]
[1746579989079,8.41548648,1846.6,1846.2,5.41633968]
[1746579989373,9.83335385,1846.6,1846.3,0.36228018]
[1746579989679,1.41786737,1846.6,1846.3,0.36228018]
[1746579989880,1.41786737,1846.6,1846.3,5.77848217]
[1746579990380,3.3479,1846.7,1846.4,5.41583268]
[1746579990540,3.0,1846.6,1846.4,5.41583268]
[1746579990872,3.0,1846.7,1846.5,0.36228018]
[1746579991079,3.0,1846.8,1846.5,5.77775765]
[1746579991577,3.0,1846.8,1846.5,5.7777487]
[1746579992285,3.0,1846.7,1846.5,5.7777487]
[1746579992776,3.0,1846.7,1846.5,0.36228018]
[1746579993139,8.41509075,1846.7,1846.5,0.36228018]
[1746579993336,5.41535795,1846.6,1846.5,0.36228018]
[1746579993741,3.0,1846.5,1846.2,11.51041]
[1746579993980,3.0,1846.5,1846.3,5.41620393]
[1746579994392,3.0,1846.5,1846.3,5.41606241]
[1746579995251,3.0,1846.5,1846.2,11.51045329]
[1746579995457,5.41639815,1846.3,1845.8,0.8279]
[1746579995659,5.4169719,1846.1,1845.8,0.8279]
[1746579995883,5.4169719,1846.1,1845.7,11.64683635]
[1746579996086,5.4169719,1846.1,1845.7,11.64678453]
[1746579996288,6.80033574,1846.1,1845.7,5.41778453]
[1746579996692,5.41714496,1846.0,1845.6,18.54450048]
[1746579996896,3.0,1845.9,1845.6,23.96260674]
[1746579997049,3.0,1845.9,1845.6,18.54440626]
[1746579997262,3.3969971,1845.9,1845.6,18.53940626]
[1746579997459,9.69603993,1845.9,1845.5,11.50044025]
[1746579997768,9.69603993,1845.9,1845.5,17.58044025]
[1746579997969,9.69603993,1845.9,1845.5,6.082]
[1746579998165,5.41784788,1845.8,1845.4,25.69334081]
[1746579998400,5.41784788,1845.8,1845.4,31.77534081]
[1746579998898,3.0,1845.7,1845.4,31.77534081]
[1746579999199,4.34090589,1845.8,1845.4,31.77531181]
[1746579999352,9.75867469,1845.8,1845.4,31.77525157]
[1746579999786,1.34090589,1845.8,1845.5,5.41848633]
[1746580000102,3.3479,1845.7,1845.0,0.41505272]
[1746580000392,8.41912395,1845.4,1845.0,5.83494261]
[1746580000553,8.41912395,1845.4,1845.1,0.30431638]
[1746580000756,0.3479,1845.3,1845.1,0.30431638]
[1746580001805,9.1010726,1845.6,1845.1,5.72388685]
[1746580002095,9.1010726,1845.6,1845.2,5.41932902]
[1746580002457,0.68269,1845.6,1845.0,5.83504381]
[1746580002666,3.0,1845.7,1845.3,5.41891642]
[1746580002997,8.41806955,1845.7,1845.3,5.41891642]
[1746580003206,8.41806955,1845.7,1845.4,0.30431638]
[1746580004093,3.0,1845.7,1845.4,5.72317351]
[1746580004268,4.68880589,1845.8,1845.4,5.72301147]
[1746580004469,10.10652289,1845.8,1845.4,5.72301147]
[1746580004700,1.01065229,1845.7,1845.4,5.72301147]
[1746580004901,3.0,1845.6,1845.4,0.30431638]
[1746580005404,8.41848651,1845.6,1845.4,0.30431638]
[1746580005597,8.41848651,1845.6,1845.4,0.29598305]
[1746580005801,8.41848651,1845.6,1845.2,11.50336301]
[1746580005998,0.84184865,1845.5,1845.3,5.71511399]
[1746580006170,3.0,1845.6,1845.3,5.71511399]
[1746580006974,4.01065229,1845.7,1845.3,0.29598305]
[1746580007174,9.42888135,1845.7,1845.3,0.29598305]
[1746580007507,8.41831327,1845.6,1845.3,0.29598305]
[1746580008069,3.0,1845.4,1845.3,0.29598305]
[1746580008270,3.84187954,1845.4,1845.3,0.29598305]
[1746580008501,9.60865891,1845.4,1845.3,0.29598305]
[1746580008711,4.18977954,1845.4,1845.1,5.41974455]
[1746580008883,4.18977954,1845.4,1845.3,0.30925692]
[1746580009097,4.18977954,1845.4,1845.0,17.97092709]
[1746580009419,5.41932371,1845.3,1845.0,12.55105272]
[1746580009620,6.60879047,1845.4,1845.1,0.30925692]
[1746580010885,7.01027527,1845.4,1845.1,0.30925692]
[1746580011181,8.41919247,1845.3,1845.1,0.30925692]
[1746580012315,10.01031867,1845.4,1845.1,0.30925692]
[1746580012606,0.4014848,1845.4,1845.2,5.41937166]
[1746580012807,3.0,1845.5,1845.2,5.41937166]
[1746580013012,3.0,1845.5,1845.3,0.31027864]
[1746580013225,3.0,1845.6,1845.4,5.41876646]
[1746580013404,3.0,1845.7,1845.4,5.72890886]
[1746580013588,3.87657529,1845.7,1845.4,5.72890886]
[1746580013790,0.87657529,1845.7,1845.4,5.72881345]
[1746580014010,3.3479,1845.8,1845.5,5.41841681]
[1746580014334,0.3479,1845.8,1845.5,5.41841681]
[1746580014504,3.3479,1845.8,1845.6,0.3101424]
[1746580015023,0.3969971,1845.9,1845.6,5.72827972]
[1746580015247,3.0,1845.9,1845.6,5.72827972]
[1746580015388,5.92471977,1846.0,1845.6,5.72827972]
[1746580015590,5.41742031,1845.9,1845.6,0.3101424]
[1746580016225,8.41742031,1845.9,1845.6,0.3101424]
[1746580016398,3.40047318,1845.9,1845.6,5.72841621]
[1746580016612,3.40047318,1845.9,1845.6,5.72826363]
[1746580016914,3.40047318,1845.9,1845.6,0.3101424]
[1746580017114,4.54841371,1845.9,1845.6,5.7282362]
[1746580017939,4.54841371,1845.9,1845.7,5.4179959]
[1746580018338,4.54841371,1845.9,1845.6,5.7282362]
[1746580018543,4.54841371,1845.9,1845.8,0.30843966]
[1746580019150,3.40047318,1845.9,1845.8,0.30843966]
[1746580019656,3.40047318,1845.9,1845.8,5.72614472]
[1746580019949,3.40047318,1845.9,1845.8,0.30843966]
[1746580020821,5.96887937,1845.4,1845.0,0.4094835]
[1746580021026,5.42020447,1845.0,1844.5,5.42123338]
[1746580021210,8.42025968,1845.0,1844.2,0.85661631]
[1746580021412,8.42025968,1845.0,1844.5,5.42150816]
[1746580021635,13.84057231,1845.0,1844.5,5.42150816]
[1746580021957,3.0,1844.7,1844.3,17.60498131]
[1746580022767,0.40306742,1844.7,1844.4,5.4218003]
[1746580023042,0.0395,1845.0,1844.4,5.47592961]
[1746580023248,5.42078049,1844.8,1844.4,5.42171599]
[1746580023655,0.0395,1845.0,1844.3,12.183]
[1746580023947,8.42046983,1844.9,1844.4,5.47588662]
[1746580024156,3.0,1844.9,1844.4,5.47588662]
[1746580024568,3.0,1844.7,1844.4,0.05421452]
[1746580024863,8.42110716,1844.7,1844.4,0.05421452]
[1746580025018,8.42110716,1844.7,1844.3,6.085]
[1746580025019,8.82405251,1844.7,1844.3,6.085]
[1746580025224,8.82405251,1844.7,1844.3,12.171]
[1746580025740,0.40294535,1844.7,1844.4,5.4760183]
[1746580025940,8.4208705,1844.8,1844.4,0.05421414]
[1746580026270,5.421,1844.7,1844.3,17.59297939]
[1746580027851,8.42079546,1844.8,1844.3,23.01492187]
[1746580028026,8.42079546,1844.8,1844.4,0.05421261]
[1746580028221,13.84171644,1844.8,1844.3,17.59294248]
[1746580028427,8.42079546,1844.8,1844.5,0.14297395]
[1746580028634,5.42099333,1844.7,1844.4,0.0542126]
[1746580028957,8.8353787,1844.8,1844.6,0.14297395]
[1746580029259,8.83539797,1844.8,1844.7,0.14297395]
[1746580029556,10.26098434,1844.8,1844.7,0.14297395]
[1746580029748,5.42105454,1844.7,1844.3,17.59300418]
[1746580030619,7.26097403,1844.8,1844.4,5.42178899]
[1746580030953,8.4209885,1844.7,1844.4,0.05421257]
[1746580031154,10.26100874,1844.8,1844.4,5.42180813]
[1746580031331,10.26100874,1844.8,1844.3,17.59294377]
[1746580031541,5.42095842,1844.7,1844.3,17.59294377]
[1746580032468,5.42153127,1844.5,1844.2,0.8024]
[1746580032662,3.0,1844.4,1844.0,12.25199676]
[1746580032864,3.0,1844.2,1844.0,6.8291]
[1746580033067,0.0395,1844.6,1844.0,6.8291]
[1746580033237,5.4216552,1844.5,1844.1,5.42252972]
[1746580033438,5.42188364,1844.4,1844.0,12.2519064]
[1746580033968,0.54611552,1844.5,1844.1,5.42261285]
[1746580034169,3.0,1844.3,1844.0,12.2519352]
[1746580035636,3.0,1844.3,1844.0,12.25191702]
[1746580035839,3.0,1844.3,1844.0,12.25191659]
[1746580036267,3.40816769,1844.3,1844.0,12.25191659]
[1746580036770,3.40816769,1844.3,1844.0,12.25200463]
[1746580037267,6.71331006,1844.3,1844.0,6.8291]